bitfinex-derivatives/quotes_SOLF0:USTF0_20240906
["timestamp","ask_amount","ask_price","bid_price","bid_amount"]
[1725611737986,3.8874,128.64,128.62,0.05734054]
[1725611738281,0.05435541,128.65,128.62,0.05734054]
[1725611739093,3.8877,128.63,128.62,0.05734054]
[1725611739784,3.8876,128.64,128.62,0.05734054]
[1725611739989,0.05435541,128.65,128.62,0.05734054]
[1725611740384,3.8877,128.63,128.54,4.137]
[1725611740589,29.88,128.61,128.54,4.137]
[1725611740888,3.8897,128.57,128.53,3.8905]
[1725611741289,3.8897,128.57,128.52,3.92813079]
[1725611741484,0.05486419,128.56,128.53,0.05842919]
[1725611741687,0.05486419,128.56,128.53,0.05682631]
[1725611742579,0.05486419,128.56,128.54,3.8902]
[1725611742786,0.05486419,128.56,128.53,0.05682631]
[1725611743384,0.05486419,128.56,128.54,3.8902]
[1725611743682,0.05486419,128.56,128.53,2.80192631]
[1725611743990,3.94476419,128.56,128.53,8.08962631]
[1725611744489,3.8903,128.55,128.53,4.19912631]
[1725611744687,0.05486419,128.56,128.53,4.19912631]
[1725611745190,3.8902,128.55,128.53,4.19912631]
[1725611745388,0.05486419,128.56,128.53,4.19912631]
[1725611746091,3.94486419,128.56,128.53,8.08962631]
[1725611746296,0.05486419,128.56,128.53,4.19912631]
[1725611746589,29.88,128.61,128.53,4.19912631]
[1725611746791,3.8896,128.57,128.54,3.8902]
[1725611747593,3.94784209,128.57,128.54,3.94701087]
[1725611748093,3.8898,128.56,128.54,3.94701087]
[1725611750196,3.8901,128.55,128.54,0.05681087]
[1725611752398,3.8899,128.56,128.54,0.05681087]
[1725611752600,0.05824209,128.57,128.54,0.05681087]
[1725611752794,0.05824209,128.57,128.54,29.93681087]
[1725611754000,3.94774209,128.57,128.55,3.8899]
[1725611758809,0.05824209,128.57,128.56,3.8898]
[1725611759007,3.8893,128.58,128.56,3.8898]
[1725611759209,31.3234,128.65,128.56,29.88]
[1725611759509,31.3234,128.65,128.57,3.8892]
[1725611760108,3.8887,128.6,128.59,0.05437155]
[1725611760998,33.7687,128.6,128.59,0.05437155]
[1725611761502,3.8887,128.6,128.59,0.05437155]
[1725611763807,3.90650818,128.62,128.59,0.05437155]
[1725611764614,3.8886,128.6,128.59,0.05437155]
[1725611767708,3.8884,128.61,128.59,3.94327155]
[1725611767908,3.8884,128.61,128.59,0.05437155]
[1725611770418,3.8884,128.61,128.59,3.94317155]
[1725611770610,0.05523976,128.62,128.59,0.05437155]
[1725611770922,0.05523976,128.62,128.59,33.83813199]
[1725611771120,0.05523976,128.62,128.59,36.49423199]
[1725611771718,0.05523976,128.62,128.6,29.88]
[1725611772119,0.05523976,128.62,128.61,3.8883]
[1725611773617,29.88,128.69,128.64,3.8873]
[1725611773821,6.67846969,128.7,128.64,3.8873]
[1725611774013,6.67846969,128.7,128.64,29.88]
[1725611774212,3.8864,128.68,128.65,3.8869]
[1725611774418,3.8864,128.68,128.64,29.88]
[1725611774625,3.93780797,128.67,128.65,3.9449282]
[1725611774923,0.05140797,128.67,128.65,0.05425275]
[1725611775328,3.8869,128.66,128.65,0.05425275]
[1725611780532,29.93140797,128.67,128.58,1.4029]
[1725611780735,31.3056,128.65,128.58,1.4029]
[1725611781030,31.3056,128.65,128.59,3.8888]
[1725611781227,3.8881,128.62,128.59,3.8888]
[1725611781427,3.94046449,128.62,128.59,3.94111742]
[1725611781828,3.94046449,128.62,128.6,3.8885]
[1725611782240,0.05236449,128.62,128.6,3.8886]
[1725611783027,0.05236449,128.62,128.59,3.94101742]
[1725611783932,3.94046449,128.62,128.59,3.94101742]
[1725611784938,3.8884,128.61,128.59,0.05231742]
[1725611786340,3.8886,128.6,128.59,0.05231742]
[1725611791535,3.8899,128.56,128.46,7.7852]
[1725611791736,3.91132275,128.63,128.51,29.88]
[1725611791737,1.3445,128.59,128.51,29.88]
[1725611791941,11.96,128.57,128.52,3.95870351]
[1725611792141,3.8906,128.54,128.52,3.95870351]
[1725611792334,3.84820997,128.56,128.52,3.95870351]
[1725611792529,11.96,128.57,128.5,15.8514]
[1725611792733,0.05352362,128.55,128.49,11.96]
[1725611793040,3.79374132,128.54,128.52,0.05506246]
[1725611793242,3.8907,128.53,128.52,0.05506246]
[1725611794031,3.94372362,128.55,128.52,0.05506246]
[1725611794233,0.05352362,128.55,128.53,29.9]
[1725611795042,0.05352362,128.55,128.54,3.8904]
[1725611796238,0.05352362,128.55,128.53,33.7905]
[1725611796537,0.05352362,128.55,128.53,3.8905]
[1725611798148,0.05352362,128.55,128.54,3.8904]
[1725611804059,0.05352362,128.55,128.54,33.7904]
[1725611804353,2.7469,128.64,128.57,29.9]
[1725611804539,2.7469,128.64,128.57,33.88677996]
[1725611804740,3.8883,128.61,128.57,33.88677996]
[1725611805252,0.05946892,128.6,128.58,0.05490994]
[1725611805855,3.94826892,128.6,128.58,0.05490994]
[1725611807455,3.8889,128.59,128.58,0.05490994]
[1725611810957,0.05946892,128.6,128.58,3.94410994]
[1725611811952,0.05946892,128.6,128.59,3.8889]
[1725611819254,0.05946892,128.6,128.58,0.05490994]
[1725611819556,0.05946892,128.6,128.58,3.94410994]
[1725611819557,3.94816892,128.6,128.58,3.94410994]
[1725611820262,0.05946892,128.6,128.58,3.94410994]
[1725611820760,3.94816892,128.6,128.58,3.94410994]
[1725611821165,3.8889,128.59,128.58,0.05490994]
[1725611821955,33.88710502,128.6,128.5,29.9]
[1725611822354,3.8904,128.54,128.51,3.8911]
[1725611822862,1.3303,128.59,128.52,3.8909]
[1725611823063,3.8902,128.55,128.52,3.8909]
[1725611823366,0.05317833,128.57,128.54,0.05763026]
[1725611823572,3.89,128.56,128.54,0.0520629]
[1725611824058,3.9429153,128.57,128.54,0.0520629]
[1725611824766,3.9429153,128.57,128.54,3.9422629]
[1725611825061,3.9429153,128.57,128.54,0.0520629]
[1725611825062,0.0533153,128.57,128.54,0.0520629]
[1725611825478,0.0533153,128.57,128.55,3.8899]
[1725611825856,3.9428153,128.57,128.55,3.8899]
[1725611826060,0.0533153,128.57,128.55,3.8899]
[1725611826571,3.9428153,128.57,128.55,3.8899]
[1725611828584,3.8898,128.56,128.54,3.9422629]
[1725611830283,3.8901,128.55,128.54,0.0520629]
[1725611831172,3.8899,128.56,128.54,0.0520629]
[1725611831372,0.0533153,128.57,128.54,0.0520629]
[1725611831871,3.8898,128.56,128.54,0.0520629]
[1725611832469,0.0533153,128.57,128.54,29.9520629]
[1725611832771,0.0533153,128.57,128.56,33.7898]
[1725611834073,0.0533153,128.57,128.54,0.0520629]
[1725611834673,3.8898,128.56,128.54,3.9422629]
[1725611835681,3.9429153,128.57,128.54,3.9422629]
[1725611836167,0.0533153,128.57,128.54,29.9520629]
[1725611836378,7.7729,128.68,128.56,29.9]
[1725611836677,3.8887,128.6,128.57,3.8893]
[1725611837176,3.8887,128.6,128.58,3.8891]
[1725611837372,3.94225176,128.6,128.58,3.8891]
[1725611837579,4.0042289,128.6,128.52,29.9]
[1725611837776,0.05408103,128.57,128.55,3.8901]
[1725611837971,0.05002942,128.57,128.55,3.8901]
[1725611838775,0.05002942,128.57,128.52,29.9]
[1725611838776,3.93962942,128.57,128.54,3.8902]
[1725611838977,3.93962942,128.57,128.55,0.04992523]
[1725611839980,3.8898,128.56,128.55,0.04992523]
[1725611840381,3.8905,128.54,128.49,32.7677]
[1725611840586,33.75572391,128.59,128.52,3.8907]
[1725611841086,3.85572391,128.59,128.5,29.9]
[1725611841380,3.8901,128.55,128.53,0.04897963]
[1725611841571,0.05362605,128.56,128.53,0.04897963]
[1725611842380,3.8904,128.54,128.53,0.04897963]
[1725611844575,0.05362605,128.56,128.53,0.04897963]
[1725611844576,3.8902,128.55,128.53,0.04897963]
[1725611845479,3.8904,128.54,128.53,0.04897963]
[1725611845879,0.05362605,128.56,128.53,0.04897963]
[1725611846487,3.8903,128.55,128.53,3.93957963]
[1725611847078,0.05362605,128.56,128.53,0.04897963]
[1725611847382,0.05362605,128.56,128.54,29.9]
[1725611847879,0.05362605,128.56,128.55,3.8901]
[1725611852289,0.05362605,128.56,128.55,7.84060786]
[1725611852783,2.7117,128.66,128.59,3.8886]
[1725611852982,4.1009,128.66,128.59,3.8886]
[1725611853995,4.1009,128.66,128.55,3.95050786]
[1725611853996,0.05405678,128.64,128.61,29.95784644]
[1725611854491,0.05405678,128.64,128.63,33.7877]
[1725611854787,104.71480557,128.7,128.63,33.7877]
[1725611854788,108.64554879,128.7,128.65,29.9]
[1725611855181,3.8859,128.69,128.66,3.8866]
[1725611855785,3.886,128.69,128.65,33.7869]
[1725611855987,3.886,128.69,128.66,0.05000989]
[1725611856583,3.8864,128.67,128.66,0.05000989]
[1725611856891,3.83902581,128.67,128.59,33.84596788]
[1725611857084,4.0227,128.68,128.59,33.84596788]
[1725611857085,4.0227,128.68,128.61,3.8882]
[1725611857591,7.98927853,128.68,128.61,3.8882]
[1725611857786,3.8873,128.65,128.63,0.05117093]
[1725611858483,3.8873,128.64,128.63,0.05117093]
[1725611861893,3.8872,128.65,128.63,0.05117093]
[1725611862091,0.0526234,128.66,128.63,0.05117093]
[1725611863188,0.0526234,128.66,128.64,3.8872]
[1725611864389,0.0526234,128.66,128.63,0.05117093]
[1725611865004,3.9394234,128.66,128.63,0.05117093]
[1725611865492,3.9394234,128.66,128.63,3.93867093]
[1725611865891,3.8871,128.65,128.63,0.05117093]
[1725611866100,3.8871,128.65,128.63,3.93877093]
[1725611867997,3.8871,128.65,128.63,0.05117093]
[1725611869298,3.8871,128.65,128.63,3.93867093]
[1725611874697,3.9395234,128.66,128.63,3.93867093]
[1725611874900,0.0526234,128.66,128.63,3.93867093]
[1725611875598,3.8871,128.65,128.63,3.93867093]
[1725611879106,3.8873,128.64,128.63,0.05117093]
[1725611884100,29.9,128.65,128.57,33.7893]
[1725611884408,2.8666,128.64,128.57,3.8893]
[1725611885113,3.8886,128.6,128.59,0.0510013]
[1725611886904,3.8896,128.57,128.53,102.35698963]
[1725611887109,3.8896,128.57,128.53,29.9]
[1725611887602,3.8896,128.57,128.54,3.8902]
[1725611888003,3.94465247,128.57,128.54,3.8902]
[1725611888211,0.05505247,128.57,128.55,29.9]
[1725611888605,0.05505247,128.57,128.56,3.8898]
[1725611889716,3.8881,128.62,128.59,3.8888]
[1725611890521,3.94003127,128.62,128.59,3.94029793]
[1725611890711,0.05193127,128.62,128.6,3.8883]
[1725611890907,0.05193127,128.62,128.6,29.9]
[1725611891611,0.05193127,128.62,128.61,3.8883]
[1725611891808,0.05193127,128.62,128.61,33.7883]
[1725611892716,0.05193127,128.62,128.61,3.8883]
[1725611892925,0.05193127,128.62,128.59,3.94019793]
[1725611893228,3.98231656,128.62,128.59,0.05149793]
[1725611893413,0.05193127,128.62,128.59,0.05149793]
[1725611893813,3.8886,128.6,128.59,0.05149793]
[1725611894009,29.9,128.61,128.53,29.9]
[1725611894209,29.9,128.61,128.51,29.9]
[1725611894415,3.8899,128.56,128.51,29.9]
[1725611894919,29.9,128.61,128.51,29.9]
[1725611895117,3.8901,128.55,128.51,29.9]
[1725611895418,0.04952094,128.54,128.52,0.05879633]
[1725611896516,0.04952094,128.54,128.53,3.8907]
[1725611900525,0.04952094,128.54,128.52,3.94969633]
[1725611901425,0.04952094,128.54,128.52,0.05879633]
[1725611902328,3.8907,128.53,128.52,0.05879633]
[1725611904831,3.94012094,128.54,128.52,0.05879633]
[1725611906832,3.8907,128.53,128.52,0.05879633]
[1725611907128,0.04952094,128.54,128.52,0.05879633]
[1725611907330,0.04952094,128.54,128.53,3.8907]
[1725611909933,3.93992094,128.54,128.52,3.94959633]
[1725611910138,0.04952094,128.54,128.52,0.05879633]
[1725611910540,3.94012094,128.54,128.52,0.05879633]
[1725611910941,0.04952094,128.54,128.52,0.05879633]
[1725611911550,3.8907,128.53,128.52,0.05879633]
[1725611912743,3.94002094,128.54,128.52,3.94979633]
[1725611915241,0.04952094,128.54,128.52,0.05879633]
[1725611915445,3.8907,128.53,128.52,0.05879633]
[1725611917145,0.04952094,128.54,128.52,0.05879633]
[1725611917547,0.04952094,128.54,128.52,3.94969633]
[1725611918347,3.94002094,128.54,128.52,3.94969633]
[1725611922356,0.04952094,128.54,128.53,3.8907]
[1725611923057,3.93992094,128.54,128.52,3.94959633]
[1725611929051,3.8907,128.53,128.52,0.05879633]
[1725611940669,0.04952094,128.54,128.32,261.52474137]
[1725611940670,3.8919,128.49,128.44,31.2296]
[1725611940873,3.8919,128.49,128.45,3.82200373]
[1725611941462,3.8919,128.49,128.44,31.2296]
[1725611941666,0.05287041,128.48,128.45,3.86794876]
[1725611942066,0.05287041,128.48,128.47,3.8925]
[1725611943074,3.86816173,128.53,128.46,31.287]
[1725611943275,3.8911,128.52,128.48,29.91]
[1725611943467,3.8911,128.52,128.5,3.8915]
[1725611943771,3.8911,128.52,128.48,29.91]
[1725611943982,3.94246896,128.51,128.49,3.8917]
[1725611945572,0.05116896,128.51,128.49,3.8917]
[1725611945879,0.05116896,128.51,128.5,33.8016]
[1725611946575,0.05116896,128.51,128.5,3.8916]
[1725611947980,0.05116896,128.51,128.49,33.8018]
[1725611948277,0.05116896,128.51,127.08,68.51750719]
[1725611948278,0.05116896,128.51,128.32,264.6300656]
[1725611948482,29.91,128.5,128.41,29.91]
[1725611948687,29.91,128.48,128.4,1.3085]
[1725611948879,33.78288666,128.48,128.4,5.140517]
[1725611949181,3.8936,128.44,128.41,3.8941]
[1725611949479,3.95307226,128.44,128.4,5.140517]
[1725611949881,0.05947226,128.44,128.42,3.894]
[1725611951378,0.05947226,128.44,128.43,3.8937]
[1725611952985,0.05947226,128.44,128.4,1.3085]
[1725611953381,3.95307226,128.44,128.41,3.8941]
[1725611954986,3.95307226,128.44,128.4,31.2185]
[1725611956487,3.95307226,128.44,128.41,3.8943]
[1725611956689,3.95307226,128.44,128.4,31.2185]
[1725611957184,3.8938,128.43,128.38,33.73924365]
[1725611957789,3.8938,128.43,128.41,3.8942]
[1725611959885,0.05947226,128.44,128.38,33.73924365]
[1725611960187,0.05947226,128.44,128.4,29.91]
[1725611960687,3.95297226,128.44,128.41,3.8943]
[1725611961489,3.8937,128.43,128.41,3.94357824]
[1725611962386,3.95297226,128.44,128.42,3.8939]
[1725611962580,0.05947226,128.44,128.41,0.04927824]
[1725611963390,0.05947226,128.44,128.43,3.8937]
[1725611963883,0.05947226,128.44,128.42,3.8939]
[1725611964283,0.05947226,128.44,128.41,29.95927824]
[1725611964489,0.05947226,128.44,128.43,3.8937]
[1725611966777,0.05947226,128.44,128.41,29.95927824]
[1725611966778,0.05947226,128.44,128.42,3.8938]
[1725611967692,0.05947226,128.44,128.42,3.894]
[1725611968589,0.05947226,128.44,128.43,3.8937]
[1725611970290,0.05947226,128.44,128.41,0.04927824]
[1725611970291,3.95287226,128.44,128.42,3.8938]
[1725611971193,0.05947226,128.44,128.42,3.8938]
[1725611971390,0.05947226,128.44,128.43,3.8937]
[1725611972499,4.0412,128.51,128.47,3.8923]
[1725611972700,7.97570432,128.51,128.47,3.8923]
[1725611973094,3.8914,128.51,128.48,3.8919]
[1725611973698,3.94521008,128.51,128.48,3.94187515]
[1725611974102,3.8917,128.5,128.48,3.94187515]
[1725611978108,0.05381008,128.51,128.48,0.04997515]
[1725611978804,0.05381008,128.51,128.5,3.8916]
[1725611986807,0.05381008,128.51,128.49,3.8918]
[1725611987009,0.05381008,128.51,128.48,0.04997515]
[1725611987010,3.94521008,128.51,128.48,0.04997515]
[1725611987211,0.05381008,128.51,128.48,0.04997515]
[1725611987710,3.8919,128.49,128.48,0.04997515]
[1725611992609,3.94531008,128.51,128.49,3.8919]
[1725611992810,0.05381008,128.51,128.48,0.04997515]
[1725611993309,3.8918,128.5,128.48,0.04997515]
[1725611993513,0.05381008,128.51,128.48,0.04997515]
[1725611993812,3.8919,128.49,128.48,0.04997515]
[1725611998315,29.91,128.49,128.42,1.3372]
[1725611998517,29.91,128.49,128.39,39.0284]
[1725611998718,29.91,128.49,128.39,40.4508]
[1725611999024,29.91,128.49,128.43,3.8936]
[1725611999220,0.05175573,128.47,128.43,3.8936]
[1725611999422,3.8933,128.45,128.43,3.8936]
[1725612000519,3.94302374,128.47,128.43,0.05096435]
[1725612001317,3.8936,128.44,128.43,0.05096435]
[1725612008126,3.8932,128.45,128.43,0.05096435]
[1725612009414,3.8932,128.45,128.43,3.94466435]
[1725612009817,0.05175573,128.47,128.43,0.05096435]
[1725612010020,0.05175573,128.47,128.44,29.91]
[1725612010421,0.05175573,128.47,128.46,3.8928]
[1725612011820,0.05175573,128.47,128.43,0.05096435]
[1725612012225,3.8933,128.45,128.43,0.05096435]
[1725612012522,0.05175573,128.47,128.43,0.05096435]
[1725612012927,3.8934,128.44,128.43,0.05096435]
[1725612018129,0.05175573,128.47,128.43,0.05096435]
[1725612018833,3.94435573,128.47,128.45,3.8931]
[1725612020132,3.893,128.46,128.44,3.8933]
[1725612021625,0.05175573,128.47,128.43,3.94446435]
[1725612022135,3.8931,128.45,128.43,3.94446435]
[1725612022327,29.91,128.46,128.43,0.05096435]
[1725612022626,3.8934,128.44,128.43,0.05096435]
[1725612024328,3.8941,128.42,128.39,3.8948]
[1725612025227,3.8944,128.41,128.39,3.8948]
[1725612025428,0.05207736,128.42,128.38,3.8952]
[1725612026037,3.8945,128.41,128.38,3.8952]
[1725612026337,0.05207736,128.42,128.37,3.8954]
[1725612026935,3.8948,128.4,128.37,3.8954]
[1725612027738,3.8949,128.39,128.37,3.8954]
[1725612027941,3.95072505,128.39,128.36,3.8956]
[1725612028327,3.95072505,128.39,128.34,31.3215]
[1725612028538,3.95072505,128.39,128.35,0.05966539]
[1725612029040,0.05582505,128.39,128.37,3.8953]
[1725612029631,3.95082505,128.39,128.37,3.8953]
[1725612030132,0.05582505,128.39,128.35,0.05966539]
[1725612031339,0.05582505,128.39,128.36,29.91]
[1725612031731,0.05582505,128.39,128.37,3.8954]
[1725612031732,3.95072505,128.39,128.37,3.8954]
[1725612031942,0.05582505,128.39,128.37,3.8954]
[1725612034536,0.05582505,128.39,128.38,3.8952]
[1725612040644,0.05582505,128.39,128.37,3.8953]
[1725612041144,0.05582505,128.39,128.36,3.8957]
[1725612041542,3.8954,128.38,128.36,3.8957]
[1725612044140,3.8955,128.37,128.35,3.95566539]
[1725612044345,0.05582505,128.39,128.35,0.05966539]
[1725612044547,3.8954,128.38,128.36,3.8958]
[1725612047755,3.95092505,128.39,128.37,3.8953]
[1725612048749,3.95092505,128.39,128.35,0.05966539]
[1725612048950,3.8953,128.38,128.35,0.05966539]
[1725612049462,3.8953,128.38,128.36,3.8957]
[1725612051453,3.95092505,128.39,128.37,3.8955]
[1725612051655,0.05582505,128.39,128.35,0.05966539]
[1725612051949,0.05582505,128.39,128.38,3.8952]
[1725612052756,0.05582505,128.39,128.38,15.8652]
[1725612052947,3.82975574,128.43,128.42,3.894]
[1725612053145,107.00235748,128.47,128.41,11.97]
[1725612053349,11.97,128.46,128.41,11.97]
[1725612053556,3.8934,128.45,128.41,3.8943]
[1725612053751,11.97,128.46,128.41,3.8943]
[1725612054058,0.05440168,128.45,128.42,0.05048599]
[1725612054245,3.94760168,128.45,128.42,3.94428599]
[1725612054646,3.94760168,128.45,128.42,0.05048599]
[1725612055553,3.8937,128.44,128.42,0.05048599]
[1725612055755,0.05440168,128.45,128.42,0.05048599]
[1725612057158,0.05440168,128.45,128.44,3.8934]
[1725612068682,0.05440168,128.45,128.44,33.7934]
[1725612069466,0.05440168,128.45,128.44,3.8934]
[1725612075982,0.05440168,128.45,128.44,15.8634]
[1725612078580,0.05440168,128.45,128.44,3.8934]
[1725612080590,0.05440168,128.45,128.42,0.05048599]
[1725612080989,3.8937,128.43,128.42,0.05048599]
[1725612081978,7.74203618,128.43,128.42,0.05048599]
[1725612095098,3.8935,128.44,128.42,0.05048599]
[1725612095597,3.8935,128.44,128.42,3.94448599]
[1725612097092,0.05440168,128.45,128.43,3.8935]
[1725612106002,0.05440168,128.45,128.44,3.8934]
[1725612106504,0.05440168,128.45,128.43,3.8935]
[1725612111707,0.05440168,128.45,128.44,3.8934]
[1725612112620,0.05440168,128.45,128.44,15.8534]
[1725612121726,0.05440168,128.45,128.44,3.8934]
[1725612126818,2.7849,128.52,128.44,11.96]
[1725612127023,11.96,128.55,128.46,11.96]
[1725612127225,2.6897,128.56,128.51,11.96]
[1725612127420,3.8896,128.57,128.52,11.96]
[1725612127627,3.920513,128.56,128.52,11.96]
[1725612127926,0.05497017,128.55,128.54,3.8902]
[1725612128128,0.04920584,128.56,128.55,11.96]
[1725612128320,0.0492109,128.57,128.55,11.96]
[1725612128522,0.0492109,128.57,128.55,3.94007714]
[1725612130829,3.90903781,128.56,128.55,0.05017714]
[1725612131030,11.96,128.56,128.55,0.05017714]
[1725612131224,19.66933272,128.56,128.55,0.05017714]
[1725612131426,15.77953272,128.56,128.5,3.97830698]
[1725612131627,11.96,128.54,128.49,3.8918]
[1725612131932,3.8909,128.53,128.49,3.8918]
[1725612132425,0.05674983,128.52,128.5,0.05016321]
[1725612134426,3.8913,128.51,128.5,0.05016321]
[1725612137324,33.8113,128.51,128.5,0.05016321]
[1725612137532,3.8926,128.47,128.42,31.2403]
[1725612137720,3.82484393,128.48,128.42,31.2403]
[1725612137924,29.92,128.51,128.45,3.8929]
[1725612138126,3.8922,128.48,128.45,3.8929]
[1725612138328,7.74936875,128.48,128.45,3.8929]
[1725612138527,7.80153087,128.48,128.45,3.94453069]
[1725612139431,3.94436212,128.48,128.46,3.8928]
[1725612139733,0.05216212,128.48,128.46,3.8928]
[1725612140535,3.94456212,128.48,128.45,3.94463069]
[1725612141230,0.05216212,128.48,128.45,0.05163069]
[1725612141933,3.94456212,128.48,128.45,3.94453069]
[1725612142128,3.94456212,128.48,128.45,0.05163069]
[1725612142334,3.94456212,128.48,128.45,3.94453069]
[1725612143240,0.05216212,128.48,128.46,3.8927]
[1725612144538,0.05216212,128.48,128.46,3.8928]
[1725612144835,0.05216212,128.48,128.45,3.93839807]
[1725612145539,0.05216212,128.48,128.47,3.8925]
[1725612146732,0.05216212,128.48,128.46,3.8927]
[1725612147240,3.94436212,128.48,128.46,3.8927]
[1725612147436,0.05216212,128.48,128.46,3.8927]
[1725612150246,0.05216212,128.48,128.47,3.8925]
[1725612158549,0.05216212,128.48,128.45,0.05163069]
[1725612159955,3.94466212,128.48,128.45,3.94453069]
[1725612160550,0.05216212,128.48,128.45,3.94453069]
[1725612160852,3.8926,128.47,128.45,3.94453069]
[1725612163651,0.05216212,128.48,128.45,4.01277748]
[1725612163859,0.05216212,128.48,128.45,0.05163069]
[1725612164453,0.05216212,128.48,128.45,3.98123473]
[1725612164650,0.05216212,128.48,128.45,0.05163069]
[1725612164850,0.05216212,128.48,128.45,3.96838398]
[1725612165454,0.05216212,128.48,128.47,3.8925]
[1725612168154,1.4104,128.54,128.46,10.5419]
[1725612168350,5.22473272,128.56,128.47,1.4416]
[1725612168654,106.78885459,128.57,128.47,1.4416]
[1725612168655,110.67845459,128.57,128.54,3.8902]
[1725612169358,110.73327357,128.57,128.54,3.94813117]
[1725612176766,106.84367357,128.57,128.55,3.8898]
[1725612176955,0.05481898,128.57,128.54,0.05793117]
[1725612177662,0.05481898,128.57,128.55,3.8901]
[1725612179262,3.94431898,128.57,128.55,3.8901]
[1725612180558,3.8901,128.55,128.54,0.05793117]
[1725612180871,7.72424475,128.55,128.54,0.05793117]
[1725612181158,3.83414475,128.55,128.47,1.4416]
[1725612181365,9.1162,128.59,128.47,1.4416]
[1725612181559,0.28621067,128.58,128.47,1.4416]
[1725612181968,0.28621067,128.58,128.49,3.8918]
[1725612181969,3.8911,128.52,128.49,3.8918]
[1725612182366,3.94954806,128.52,128.49,3.94489367]
[1725612182763,3.8914,128.51,128.49,0.05309367]
[1725612183269,0.05844806,128.52,128.49,0.05309367]
[1725612184370,3.94954806,128.52,128.49,3.94499367]
[1725612189069,3.94954806,128.52,128.5,3.8915]
[1725612189371,0.05844806,128.52,128.5,3.8915]
[1725612190162,3.94944806,128.52,128.5,3.8915]
[1725612190361,0.05844806,128.52,128.49,3.94479367]
[1725612191359,3.8913,128.51,128.49,3.94479367]
[1725612192366,3.8916,128.5,128.49,0.05309367]
[1725612199970,4.12854806,128.52,128.5,3.8914]
[1725612200169,4.12854806,128.52,128.49,0.05309367]
[1725612200775,3.8916,128.5,128.49,0.05309367]
[1725612206580,7.87572238,128.5,128.49,0.05309367]
[1725612208279,3.98412238,128.5,128.42,2.6495]
[1725612208476,4.0701,128.52,128.39,1.3481]
[1725612208683,3.8933,128.45,128.42,3.8939]
[1725612208880,3.93163436,128.45,128.42,3.8939]
[1725612209185,3.8934,128.44,128.42,3.8939]
[1725612209484,4.00324086,128.45,128.42,3.95272763]
[1725612209679,3.94621689,128.45,128.4,3.95382938]
[1725612209880,0.05301689,128.45,128.39,9.1377]
[1725612210072,0.05301689,128.45,128.4,1.67188316]
[1725612210272,0.05301689,128.45,128.4,5.54004754]
[1725612210473,0.05301689,128.45,128.44,3.8934]
[1725612211078,3.8919,128.5,128.47,3.8925]
[1725612211479,118.70162208,128.51,128.48,3.892]
[1725612211673,118.70162208,128.51,128.39,9.1377]
[1725612211674,114.81012208,128.51,128.41,7.7883]
[1725612211880,114.81012208,128.51,128.41,11.7187662]
[1725612212075,0.05053862,128.47,128.42,1.6697986]
[1725612212385,114.81012208,128.51,128.41,11.7187662]
[1725612212582,114.81012208,128.51,128.42,1.67000471]
[1725612212788,114.81012208,128.51,128.49,3.8917]
[1725612213383,114.8633229,128.51,128.49,3.8917]
[1725612213590,114.8633229,128.51,128.49,3.94918822]
[1725612213982,114.8633229,128.51,128.5,3.8916]
[1725612214990,114.8633229,128.51,128.49,3.94918822]
[1725612215586,114.8633229,128.51,128.49,0.05748822]
[1725612215789,118.7547229,128.51,128.49,0.05748822]
[1725612216389,114.8633229,128.51,128.49,3.94918822]
[1725612220495,118.7546229,128.51,128.49,0.05748822]
[1725612223997,3.8916,128.5,128.49,0.05748822]
[1725612225387,3.8926,128.47,128.43,1.4368]
[1725612226191,3.8929,128.46,128.44,3.8933]
[1725612226387,0.0510448,128.46,128.41,3.9304662]
[1725612226595,0.0510448,128.46,128.39,2.8241]
[1725612226795,0.0510448,128.46,128.45,3.893]
[1725612228891,0.0510448,128.46,128.39,2.8241]
[1725612228892,3.91250091,128.46,128.39,2.8241]
[1725612229089,0.0510448,128.46,128.4,3.80148594]
[1725612229400,3.8933,128.45,128.42,0.05199861]
[1725612229596,3.8933,128.45,128.42,3.94579861]
[1725612230791,3.8933,128.45,128.43,3.8937]
[1725612230993,3.8936,128.44,128.42,0.05199861]
[1725612231191,0.0510448,128.46,128.42,0.05199861]
[1725612231587,3.9440448,128.46,128.43,3.8935]
[1725612232195,3.9440448,128.46,128.45,3.8931]
[1725612232196,0.0510448,128.46,128.45,3.8931]